[Event "Titled Tuesday Blitz June 07 Early 2022"]
[White "Matinian, Nikita"]
[Black "Paravyan, David"]
[WhiteFideId "24129100"]
[BlackFideId "4194985"]
[WhiteElo "2422"]
[BlackElo "2569"]
[Result "1-0"]
[Round "08"]
[TimeControl "180+1"]
[Date "2022.06.07"]
[WhiteClock "0:00:30"]
[BlackClock "0:00:01"]

1. e4 {[%clk 0:03:00]}  e5 {[%clk 0:02:59]} 2. Nf3 {[%clk 0:03:00]}  Nf6 {[%clk 0:03:00]} 3. Nxe5 {[%clk 0:02:59]}  d6 {[%clk 0:03:00]} 4. Nf3 {[%clk 0:02:59]}  Nxe4 {[%clk 0:03:00]} 5. Qe2 {[%clk 0:03:00]}  Qe7 {[%clk 0:03:00]} 6. d3 {[%clk 0:02:58]}  Nf6 {[%clk 0:03:00]} 7. Bg5 {[%clk 0:02:59]}  Qxe2+ {[%clk 0:03:00]} 8. Bxe2 {[%clk 0:02:59]}  Be7 {[%clk 0:03:01]} 9. Nc3 {[%clk 0:02:59]}  c6 {[%clk 0:02:55]} 10. O-O-O {[%clk 0:02:58]}  Na6 {[%clk 0:02:55]} 11. Rde1 {[%clk 0:02:55]}  Nc7 {[%clk 0:02:51]} 12. Bd1 {[%clk 0:02:53]}  Ne6 {[%clk 0:02:48]} 13. Bd2 {[%clk 0:02:53]}  Bd7 {[%clk 0:02:46]} 14. Ng5 {[%clk 0:02:45]}  h6 {[%clk 0:02:40]} 15. Nxe6 {[%clk 0:02:43]}  Bxe6 {[%clk 0:02:40]} 16. f4 {[%clk 0:02:44]}  Kd7 {[%clk 0:02:31]} 17. Rhf1 {[%clk 0:02:34]}  Bf5 {[%clk 0:02:26]} 18. Ne4 {[%clk 0:02:27]}  Rae8 {[%clk 0:02:23]} 19. Bc3 {[%clk 0:02:21]}  Rhg8 {[%clk 0:01:11]} 20. Nxf6+ {[%clk 0:02:18]}  Bxf6 {[%clk 0:01:11]} 21. Rxe8 {[%clk 0:02:13]}  Kxe8 {[%clk 0:01:05]} 22. Bxf6 {[%clk 0:02:12]}  gxf6 {[%clk 0:01:06]} 23. g4 {[%clk 0:02:07]}  Bd7 {[%clk 0:01:05]} 24. f5 {[%clk 0:01:56]}  Kf8 {[%clk 0:01:00]} 25. Rf4 {[%clk 0:01:52]}  h5 {[%clk 0:01:00]} 26. gxh5 {[%clk 0:01:48]}  Rg2 {[%clk 0:00:56]} 27. Rh4 {[%clk 0:01:47]}  Bxf5 {[%clk 0:00:56]} 28. h6 {[%clk 0:01:46]}  Kg8 {[%clk 0:00:55]} 29. Rf4 {[%clk 0:01:43]}  Be6 {[%clk 0:00:52]} 30. h4 {[%clk 0:01:37]}  f5 {[%clk 0:00:51]} 31. a4 {[%clk 0:01:28]}  a5 {[%clk 0:00:49]} 32. b4 {[%clk 0:01:27]}  b6 {[%clk 0:00:49]} 33. bxa5 {[%clk 0:01:23]}  bxa5 {[%clk 0:00:50]} 34. Bf3 {[%clk 0:01:18]}  Rf2 {[%clk 0:00:49]} 35. c4 {[%clk 0:01:06]}  c5 {[%clk 0:00:45]} 36. Kd1 {[%clk 0:01:06]}  Kh7 {[%clk 0:00:44]} 37. Ke1 {[%clk 0:01:05]}  Ra2 {[%clk 0:00:45]} 38. Bc6 {[%clk 0:00:52]}  Kxh6 {[%clk 0:00:44]} 39. Rf2 {[%clk 0:00:52]}  Rxf2 {[%clk 0:00:30]} 40. Kxf2 {[%clk 0:00:52]}  Kh5 {[%clk 0:00:31]} 41. Kg3 {[%clk 0:00:51]}  f4+ {[%clk 0:00:31]} 42. Kxf4 {[%clk 0:00:50]}  Kxh4 {[%clk 0:00:32]} 43. Bb5 {[%clk 0:00:35]}  Kh5 {[%clk 0:00:30]} 44. d4 {[%clk 0:00:33]}  Kg6 {[%clk 0:00:28]} 45. dxc5 {[%clk 0:00:33]}  dxc5 {[%clk 0:00:16]} 46. Ke5 {[%clk 0:00:33]}  Bg4 {[%clk 0:00:09]} 47. Kd6 {[%clk 0:00:33]}  f5 {[%clk 0:00:08]} 48. Kxc5 {[%clk 0:00:34]}  f4 {[%clk 0:00:09]} 49. Kb6 {[%clk 0:00:34]}  f3 {[%clk 0:00:08]} 50. c5 {[%clk 0:00:35]}  Kf6 {[%clk 0:00:07]} 51. Kxa5 {[%clk 0:00:33]}  Ke7 {[%clk 0:00:07]} 52. Kb6 {[%clk 0:00:33]}  f2 {[%clk 0:00:06]} 53. a5 {[%clk 0:00:32]}  Bf3 {[%clk 0:00:04]} 54. a6 {[%clk 0:00:31]}  Ba8 {[%clk 0:00:03]} 55. c6 {[%clk 0:00:29]}  Kd8 {[%clk 0:00:02]} 56. c7+ {[%clk 0:00:30]}  Kc8 {[%clk 0:00:01]} 57. Bf1 {[%clk 0:00:30]}  Bd5 {[%clk 0:00:01]} 58. Bh3+ {[%clk 0:00:30]} 1-0


[Site "https://www.chess.com"]

[Event "Titled Tuesday Blitz June 07 Early 2022"]
[White "Pires, Marcos Vinicius Torsani"]
[Black "Tanenbaum, Zachary"]
[WhiteFideId "2118939"]
[BlackFideId "2060850"]
[WhiteElo "2273"]
[BlackElo "2175"]
[Result "1-0"]
[Round "08"]
[TimeControl "180+1"]
[Date "2022.06.07"]
[WhiteClock "0:00:14"]
[BlackClock "0:00:04"]

1. d4 {[%clk 0:02:54]}  d5 {[%clk 0:02:59]} 2. Bf4 {[%clk 0:02:54]}  Nf6 {[%clk 0:02:59]} 3. e3 {[%clk 0:02:53]}  c5 {[%clk 0:02:59]} 4. c3 {[%clk 0:02:53]}  Nc6 {[%clk 0:03:00]} 5. Nd2 {[%clk 0:02:54]}  Qb6 {[%clk 0:03:00]} 6. Qb3 {[%clk 0:02:53]}  c4 {[%clk 0:03:01]} 7. Qc2 {[%clk 0:02:53]}  g6 {[%clk 0:03:02]} 8. e4 {[%clk 0:02:52]}  dxe4 {[%clk 0:03:02]} 9. Bxc4 {[%clk 0:02:48]}  Bf5 {[%clk 0:03:01]} 10. Qb3 {[%clk 0:02:44]}  e6 {[%clk 0:02:54]} 11. Qxb6 {[%clk 0:02:43]}  axb6 {[%clk 0:02:55]} 12. Ne2 {[%clk 0:02:37]}  Bg7 {[%clk 0:02:55]} 13. h3 {[%clk 0:02:34]}  h5 {[%clk 0:02:54]} 14. O-O {[%clk 0:02:33]}  O-O {[%clk 0:02:54]} 15. Ng3 {[%clk 0:02:24]}  Rfc8 {[%clk 0:02:25]} 16. a3 {[%clk 0:02:20]}  Ne7 {[%clk 0:02:20]} 17. Ba2 {[%clk 0:02:18]}  Ned5 {[%clk 0:02:19]} 18. Bg5 {[%clk 0:02:15]}  Nh7 {[%clk 0:02:03]} 19. Be3 {[%clk 0:02:15]}  Nxe3 {[%clk 0:02:01]} 20. fxe3 {[%clk 0:02:15]}  Nf6 {[%clk 0:01:56]} 21. Nc4 {[%clk 0:01:51]}  Bh6 {[%clk 0:01:53]} 22. Rae1 {[%clk 0:01:43]}  h4 {[%clk 0:01:40]} 23. Nxf5 {[%clk 0:01:42]}  gxf5 {[%clk 0:01:40]} 24. Nxb6 {[%clk 0:01:43]}  Rd8 {[%clk 0:01:32]} 25. Nxa8 {[%clk 0:01:43]}  Rxa8 {[%clk 0:01:33]} 26. d5 {[%clk 0:01:36]}  Ra6 {[%clk 0:01:21]} 27. dxe6 {[%clk 0:01:32]}  fxe6 {[%clk 0:01:18]} 28. Rxf5 {[%clk 0:01:32]}  Kg7 {[%clk 0:01:18]} 29. Rb5 {[%clk 0:01:27]}  Rd6 {[%clk 0:01:16]} 30. Rxb7+ {[%clk 0:01:25]}  Kg6 {[%clk 0:01:17]} 31. Re2 {[%clk 0:01:15]}  Rd1+ {[%clk 0:01:14]} 32. Kf2 {[%clk 0:01:10]}  Nh5 {[%clk 0:01:12]} 33. g4 {[%clk 0:00:48]}  Ng3 {[%clk 0:00:45]} 34. Bxe6 {[%clk 0:00:32]}  Nxe2 {[%clk 0:00:20]} 35. Bf5+ {[%clk 0:00:32]}  Kf6 {[%clk 0:00:05]} 36. Kxe2 {[%clk 0:00:30]}  Rh1 {[%clk 0:00:05]} 37. Rb6+ {[%clk 0:00:30]}  Kg7 {[%clk 0:00:04]} 38. Rg6+ {[%clk 0:00:30]}  Kh7 {[%clk 0:00:05]} 39. g5 {[%clk 0:00:26]}  Rh2+ {[%clk 0:00:03]} 40. Kd1 {[%clk 0:00:25]}  Bf8 {[%clk 0:00:04]} 41. Bxe4 {[%clk 0:00:21]}  Rxh3 {[%clk 0:00:03]} 42. Rf6+ {[%clk 0:00:20]}  Kg7 {[%clk 0:00:03]} 43. Ra6 {[%clk 0:00:19]}  Rh2 {[%clk 0:00:03]} 44. Ra7+ {[%clk 0:00:18]}  Kh8 {[%clk 0:00:04]} 45. g6 {[%clk 0:00:15]}  Bg7 {[%clk 0:00:01]} 46. Ra8+ {[%clk 0:00:14]}  Bf8 {[%clk 0:00:01]} 47. Rxf8+ {[%clk 0:00:15]}  Kg7 {[%clk 0:00:02]} 48. Rf7+ {[%clk 0:00:16]}  Kg8 {[%clk 0:00:03]} 49. Rh7 {[%clk 0:00:13]}  h3 {[%clk 0:00:01]} 50. Bd5+ {[%clk 0:00:13]}  Kf8 {[%clk 0:00:02]} 51. g7+ {[%clk 0:00:13]}  Ke7 {[%clk 0:00:03]} 52. g8=Q+ {[%clk 0:00:13]}  Kd6 {[%clk 0:00:04]} 53. Qe6+ {[%clk 0:00:14]}  Kc5 {[%clk 0:00:04]} 54. Rc7+ {[%clk 0:00:14]}  Kb5 {[%clk 0:00:04]} 55. Qc6+ {[%clk 0:00:14]}  Ka5 {[%clk 0:00:04]} 56. Ra7# {[%clk 0:00:14]} 1-0


[Site "https://www.chess.com"]

[Event "Titled Tuesday Blitz June 07 Early 2022"]
[White "Santos Ruiz, Miguel"]
[Black "Gong, Patrick"]
[WhiteFideId "22291482"]
[BlackFideId "3222500"]
[WhiteElo "2475"]
[BlackElo "2103"]
[Result "0-1"]
[Round "08"]
[TimeControl "180+1"]
[Date "2022.06.07"]
[WhiteClock "0:00:03"]
[BlackClock "0:00:47"]

1. e4 {[%clk 0:03:00]}  d6 {[%clk 0:02:58]} 2. Nc3 {[%clk 0:02:59]}  Nf6 {[%clk 0:02:58]} 3. Bc4 {[%clk 0:02:59]}  g6 {[%clk 0:02:58]} 4. f4 {[%clk 0:02:59]}  e6 {[%clk 0:02:55]} 5. Bb5+ {[%clk 0:02:50]}  c6 {[%clk 0:02:54]} 6. Be2 {[%clk 0:02:50]}  d5 {[%clk 0:02:52]} 7. e5 {[%clk 0:02:48]}  Nfd7 {[%clk 0:02:52]} 8. d4 {[%clk 0:02:47]}  c5 {[%clk 0:02:52]} 9. Nf3 {[%clk 0:02:48]}  Nc6 {[%clk 0:02:51]} 10. Be3 {[%clk 0:02:47]}  a6 {[%clk 0:02:44]} 11. dxc5 {[%clk 0:02:47]}  Nxc5 {[%clk 0:02:39]} 12. a3 {[%clk 0:02:38]}  b5 {[%clk 0:02:36]} 13. h4 {[%clk 0:02:37]}  h5 {[%clk 0:02:35]} 14. Qd2 {[%clk 0:02:31]}  Bb7 {[%clk 0:02:33]} 15. b4 {[%clk 0:02:27]}  Nd7 {[%clk 0:02:21]} 16. Nd4 {[%clk 0:02:27]}  Nb6 {[%clk 0:02:09]} 17. Nxc6 {[%clk 0:02:25]}  Bxc6 {[%clk 0:02:10]} 18. Bd4 {[%clk 0:02:25]}  Nc4 {[%clk 0:02:10]} 19. Bxc4 {[%clk 0:02:02]}  dxc4 {[%clk 0:02:09]} 20. O-O {[%clk 0:01:51]}  Qxh4 {[%clk 0:02:05]} 21. a4 {[%clk 0:01:42]}  Rd8 {[%clk 0:01:53]} 22. axb5 {[%clk 0:01:39]}  axb5 {[%clk 0:01:54]} 23. Qe3 {[%clk 0:01:36]}  Qg4 {[%clk 0:01:52]} 24. Ne4 {[%clk 0:01:32]}  Be7 {[%clk 0:01:42]} 25. Ra7 {[%clk 0:01:28]}  Rd7 {[%clk 0:01:33]} 26. Rxd7 {[%clk 0:01:23]}  Bxd7 {[%clk 0:01:31]} 27. Bc5 {[%clk 0:01:24]}  Bc6 {[%clk 0:01:17]} 28. Bxe7 {[%clk 0:00:51]}  Bxe4 {[%clk 0:01:15]} 29. Qxe4 {[%clk 0:00:47]}  Kxe7 {[%clk 0:01:15]} 30. Ra1 {[%clk 0:00:44]}  Kf8 {[%clk 0:01:15]} 31. Ra5 {[%clk 0:00:35]}  Kg7 {[%clk 0:01:08]} 32. Rxb5 {[%clk 0:00:31]}  h4 {[%clk 0:01:08]} 33. Qf3 {[%clk 0:00:08]}  Qf5 {[%clk 0:01:07]} 34. Rc5 {[%clk 0:00:06]}  Qxc2 {[%clk 0:01:03]} 35. Rc7 {[%clk 0:00:04]}  h3 {[%clk 0:01:01]} 36. gxh3 {[%clk 0:00:03]}  Qc1+ {[%clk 0:00:54]} 37. Kg2 {[%clk 0:00:04]}  Qd2+ {[%clk 0:00:54]} 38. Kg3 {[%clk 0:00:04]}  Qe1+ {[%clk 0:00:53]} 39. Kg2 {[%clk 0:00:05]}  Rd8 {[%clk 0:00:48]} 40. h4 {[%clk 0:00:02]}  Rd2+ {[%clk 0:00:47]} 41. Kh3 {[%clk 0:00:03]}  Rd3 {[%clk 0:00:47]} 0-1


[Site "https://www.chess.com"]

[Event "Titled Tuesday Blitz June 07 Early 2022"]
[White "Sapunov, Evgeny"]
[Black "Martinez Alcantara, Jose Eduardo"]
[WhiteFideId "4126661"]
[BlackFideId "3805662"]
[WhiteElo "2470"]
[BlackElo "2703"]
[Result "0-1"]
[Round "08"]
[TimeControl "180+1"]
[Date "2022.06.07"]
[WhiteClock "0:00:16"]
[BlackClock "0:00:04"]

1. c4 {[%clk 0:02:57]}  c5 {[%clk 0:02:56]} 2. Nf3 {[%clk 0:02:56]}  Nc6 {[%clk 0:02:56]} 3. Nc3 {[%clk 0:02:57]}  g6 {[%clk 0:02:56]} 4. e3 {[%clk 0:02:57]}  Bg7 {[%clk 0:02:57]} 5. d4 {[%clk 0:02:58]}  d6 {[%clk 0:02:58]} 6. h3 {[%clk 0:02:58]}  Nf6 {[%clk 0:02:58]} 7. d5 {[%clk 0:02:58]}  Nb4 {[%clk 0:02:54]} 8. e4 {[%clk 0:02:58]}  O-O {[%clk 0:02:54]} 9. a3 {[%clk 0:02:58]}  Na6 {[%clk 0:02:54]} 10. Bd3 {[%clk 0:02:58]}  e5 {[%clk 0:02:55]} 11. g4 {[%clk 0:02:51]}  Nc7 {[%clk 0:02:55]} 12. Bg5 {[%clk 0:02:48]}  Rb8 {[%clk 0:02:54]} 13. Qe2 {[%clk 0:02:45]}  Bd7 {[%clk 0:02:53]} 14. Nd2 {[%clk 0:02:40]}  a6 {[%clk 0:02:40]} 15. a4 {[%clk 0:02:38]}  a5 {[%clk 0:02:40]} 16. O-O-O {[%clk 0:02:29]}  Na6 {[%clk 0:02:33]} 17. Rdg1 {[%clk 0:02:29]}  Nb4 {[%clk 0:02:30]} 18. Bb1 {[%clk 0:02:29]}  h6 {[%clk 0:02:30]} 19. Be3 {[%clk 0:02:27]}  Nh7 {[%clk 0:02:31]} 20. h4 {[%clk 0:02:24]}  Kh8 {[%clk 0:02:31]} 21. b3 {[%clk 0:02:19]}  Qe7 {[%clk 0:02:27]} 22. h5 {[%clk 0:02:18]}  Ng5 {[%clk 0:02:21]} 23. Nf3 {[%clk 0:02:13]}  Kg8 {[%clk 0:02:14]} 24. Nxg5 {[%clk 0:02:07]}  hxg5 {[%clk 0:02:15]} 25. Qd2 {[%clk 0:02:03]}  Bf6 {[%clk 0:02:15]} 26. f3 {[%clk 0:01:50]}  Kg7 {[%clk 0:02:14]} 27. Bd3 {[%clk 0:01:50]}  Rh8 {[%clk 0:02:12]} 28. Bf1 {[%clk 0:01:47]}  Rh6 {[%clk 0:02:06]} 29. Rh2 {[%clk 0:01:47]}  Rbh8 {[%clk 0:02:05]} 30. Rgh1 {[%clk 0:01:47]}  gxh5 {[%clk 0:02:01]} 31. gxh5 {[%clk 0:01:37]}  Kf8 {[%clk 0:02:01]} 32. Nd1 {[%clk 0:01:36]}  Qd8 {[%clk 0:01:43]} 33. Nf2 {[%clk 0:01:32]}  Be7 {[%clk 0:01:43]} 34. Kb2 {[%clk 0:01:28]}  f6 {[%clk 0:01:41]} 35. Bg2 {[%clk 0:01:20]}  Qb6 {[%clk 0:01:39]} 36. Kc1 {[%clk 0:01:17]}  Na6 {[%clk 0:01:24]} 37. Qc3 {[%clk 0:01:12]}  Nb4 {[%clk 0:01:24]} 38. Qd2 {[%clk 0:01:10]}  Na6 {[%clk 0:01:25]} 39. Kc2 {[%clk 0:01:08]}  Ke8 {[%clk 0:01:22]} 40. Bh3 {[%clk 0:01:06]}  Kd8 {[%clk 0:01:12]} 41. Bxd7 {[%clk 0:01:05]}  Kxd7 {[%clk 0:01:13]} 42. Ng4 {[%clk 0:01:05]}  R6h7 {[%clk 0:01:14]} 43. h6 {[%clk 0:01:05]}  Kc8 {[%clk 0:01:13]} 44. Bf2 {[%clk 0:01:02]}  Nb4+ {[%clk 0:01:13]} 45. Kb1 {[%clk 0:01:00]}  Na6 {[%clk 0:01:12]} 46. Qe3 {[%clk 0:00:58]}  Nb8 {[%clk 0:01:12]} 47. Be1 {[%clk 0:00:57]}  Qc7 {[%clk 0:01:08]} 48. Ka2 {[%clk 0:00:57]}  Nd7 {[%clk 0:01:08]} 49. Bd2 {[%clk 0:00:55]}  Nf8 {[%clk 0:01:08]} 50. Qe1 {[%clk 0:00:55]}  b6 {[%clk 0:01:08]} 51. Ne3 {[%clk 0:00:56]}  Ng6 {[%clk 0:01:08]} 52. Nf5 {[%clk 0:00:55]}  Bf8 {[%clk 0:01:09]} 53. Qf1 {[%clk 0:00:55]}  Qd7 {[%clk 0:01:09]} 54. Qh3 {[%clk 0:00:55]}  Kc7 {[%clk 0:00:54]} 55. Qh5 {[%clk 0:00:52]}  Rg8 {[%clk 0:00:46]} 56. Qg4 {[%clk 0:00:50]}  Ne7 {[%clk 0:00:40]} 57. Ne3 {[%clk 0:00:48]}  Rgh8 {[%clk 0:00:38]} 58. Qxd7+ {[%clk 0:00:37]}  Kxd7 {[%clk 0:00:39]} 59. Ng4 {[%clk 0:00:37]}  Ng8 {[%clk 0:00:40]} 60. Kb1 {[%clk 0:00:33]}  Ke7 {[%clk 0:00:39]} 61. Kc2 {[%clk 0:00:33]}  Kf7 {[%clk 0:00:38]} 62. Kd3 {[%clk 0:00:33]}  Kg6 {[%clk 0:00:39]} 63. Ke2 {[%clk 0:00:33]}  Nxh6 {[%clk 0:00:34]} 64. Ne3 {[%clk 0:00:31]}  Rd7 {[%clk 0:00:26]} 65. Be1 {[%clk 0:00:30]}  Rhh7 {[%clk 0:00:25]} 66. Bf2 {[%clk 0:00:30]}  Rb7 {[%clk 0:00:22]} 67. Be1 {[%clk 0:00:28]}  Rbd7 {[%clk 0:00:20]} 68. Ng4 {[%clk 0:00:27]}  Ng8 {[%clk 0:00:15]} 69. Rxh7 {[%clk 0:00:25]}  Rxh7 {[%clk 0:00:15]} 70. Rxh7 {[%clk 0:00:25]}  Kxh7 {[%clk 0:00:16]} 71. Ne3 {[%clk 0:00:24]}  Ne7 {[%clk 0:00:16]} 72. Kf2 {[%clk 0:00:22]}  Kg6 {[%clk 0:00:16]} 73. Kg2 {[%clk 0:00:20]}  f5 {[%clk 0:00:17]} 74. Bf2 {[%clk 0:00:20]}  Bh6 {[%clk 0:00:15]} 75. Nf1 {[%clk 0:00:19]}  g4 {[%clk 0:00:14]} 76. Ng3 {[%clk 0:00:18]}  gxf3+ {[%clk 0:00:09]} 77. Kxf3 {[%clk 0:00:18]}  f4 {[%clk 0:00:06]} 78. Ne2 {[%clk 0:00:17]}  Bg5 {[%clk 0:00:07]} 79. Nc3 {[%clk 0:00:17]}  Ng8 {[%clk 0:00:04]} 80. Nb5 {[%clk 0:00:18]}  Be7 {[%clk 0:00:05]} 81. Be1 {[%clk 0:00:18]}  Nh6 {[%clk 0:00:05]} 82. Nc7 {[%clk 0:00:17]}  Nf7 {[%clk 0:00:05]} 83. Nb5 {[%clk 0:00:17]}  Ng5+ {[%clk 0:00:05]} 84. Ke2 {[%clk 0:00:18]}  Nxe4 {[%clk 0:00:06]} 85. Kd3 {[%clk 0:00:18]}  Ng5 {[%clk 0:00:04]} 86. Bh4 {[%clk 0:00:18]}  e4+ {[%clk 0:00:05]} 87. Ke2 {[%clk 0:00:18]}  Kf5 {[%clk 0:00:05]} 88. Bxg5 {[%clk 0:00:18]}  Kxg5 {[%clk 0:00:05]} 89. Na7 {[%clk 0:00:18]}  Kf5 {[%clk 0:00:05]} 90. Nc8 {[%clk 0:00:18]}  f3+ {[%clk 0:00:04]} 91. Kf1 {[%clk 0:00:18]}  Bh4 {[%clk 0:00:02]} 92. Nxd6+ {[%clk 0:00:18]}  Kf4 {[%clk 0:00:03]} 93. Nf7 {[%clk 0:00:16]}  e3 {[%clk 0:00:03]} 94. d6 {[%clk 0:00:16]}  e2+ {[%clk 0:00:04]} 0-1


[Site "https://www.chess.com"]

[Event "Titled Tuesday Blitz June 07 Early 2022"]
[White "Sarana, Alexey"]
[Black "Svane, Rasmus"]
[WhiteFideId "24133795"]
[BlackFideId "4657101"]
[WhiteElo "2666"]
[BlackElo "2674"]
[Result "1-0"]
[Round "08"]
[TimeControl "180+1"]
[Date "2022.06.07"]
[WhiteClock "0:01:06"]
[BlackClock "0:00:01"]

1. d4 {[%clk 0:03:00]}  Nf6 {[%clk 0:03:00]} 2. c4 {[%clk 0:03:01]}  e6 {[%clk 0:03:00]} 3. Nc3 {[%clk 0:03:02]}  Bb4 {[%clk 0:03:00]} 4. e3 {[%clk 0:03:03]}  O-O {[%clk 0:03:00]} 5. Bd3 {[%clk 0:03:03]}  d5 {[%clk 0:03:00]} 6. a3 {[%clk 0:03:03]}  Bxc3+ {[%clk 0:02:59]} 7. bxc3 {[%clk 0:03:04]}  dxc4 {[%clk 0:02:57]} 8. Bxc4 {[%clk 0:03:05]}  c5 {[%clk 0:02:57]} 9. Ne2 {[%clk 0:03:05]}  Qc7 {[%clk 0:02:55]} 10. Bd3 {[%clk 0:03:06]}  e5 {[%clk 0:02:50]} 11. O-O {[%clk 0:02:55]}  Nc6 {[%clk 0:02:47]} 12. Ng3 {[%clk 0:02:46]}  Rd8 {[%clk 0:02:39]} 13. f4 {[%clk 0:02:45]}  exd4 {[%clk 0:02:10]} 14. cxd4 {[%clk 0:02:46]}  cxd4 {[%clk 0:02:11]} 15. e4 {[%clk 0:02:47]}  Bg4 {[%clk 0:01:54]} 16. Qc2 {[%clk 0:02:42]}  Nh5 {[%clk 0:01:38]} 17. Nxh5 {[%clk 0:02:24]}  Bxh5 {[%clk 0:01:38]} 18. e5 {[%clk 0:02:24]}  h6 {[%clk 0:00:59]} 19. Bd2 {[%clk 0:02:23]}  Rac8 {[%clk 0:00:58]} 20. Rac1 {[%clk 0:02:23]}  Qe7 {[%clk 0:00:55]} 21. Qb3 {[%clk 0:02:21]}  b6 {[%clk 0:00:45]} 22. h3 {[%clk 0:02:14]}  Kh8 {[%clk 0:00:39]} 23. Rce1 {[%clk 0:02:02]}  Na5 {[%clk 0:00:29]} 24. Qa2 {[%clk 0:02:02]}  Qe6 {[%clk 0:00:26]} 25. Qb1 {[%clk 0:01:47]}  Nc4 {[%clk 0:00:24]} 26. Bc1 {[%clk 0:01:36]}  Ne3 {[%clk 0:00:23]} 27. Bxe3 {[%clk 0:01:35]}  dxe3 {[%clk 0:00:24]} 28. Bf5 {[%clk 0:01:36]}  e2 {[%clk 0:00:16]} 29. Bxe6 {[%clk 0:01:28]}  exf1=Q+ {[%clk 0:00:17]} 30. Rxf1 {[%clk 0:01:27]}  fxe6 {[%clk 0:00:18]} 31. f5 {[%clk 0:01:27]}  exf5 {[%clk 0:00:16]} 32. Qxf5 {[%clk 0:01:26]}  Be2 {[%clk 0:00:16]} 33. Re1 {[%clk 0:01:25]}  Bd3 {[%clk 0:00:16]} 34. Qf7 {[%clk 0:01:24]}  a6 {[%clk 0:00:11]} 35. e6 {[%clk 0:01:24]}  Bc4 {[%clk 0:00:11]} 36. Qb7 {[%clk 0:01:21]}  b5 {[%clk 0:00:07]} 37. e7 {[%clk 0:01:20]}  Re8 {[%clk 0:00:08]} 38. Qxc8 {[%clk 0:01:08]}  Rxc8 {[%clk 0:00:08]} 39. e8=Q+ {[%clk 0:01:09]}  Rxe8 {[%clk 0:00:08]} 40. Rxe8+ {[%clk 0:01:09]}  Kh7 {[%clk 0:00:09]} 41. Ra8 {[%clk 0:01:09]}  g5 {[%clk 0:00:02]} 42. Rxa6 {[%clk 0:01:09]}  Kg7 {[%clk 0:00:01]} 43. Kf2 {[%clk 0:01:10]}  h5 {[%clk 0:00:01]} 44. g3 {[%clk 0:01:09]}  h4 {[%clk 0:00:01]} 45. g4 {[%clk 0:01:07]}  Kf7 {[%clk 0:00:02]} 46. Rc6 {[%clk 0:01:07]}  Bd3 {[%clk 0:00:01]} 47. Rc5 {[%clk 0:01:06]}  Kf6 {[%clk 0:00:01]} 48. Ke3 {[%clk 0:01:06]}  Bf1 {[%clk 0:00:01]} 49. Rf5+ {[%clk 0:01:06]} 1-0


[Site "https://www.chess.com"]

[Event "Titled Tuesday Blitz June 07 Early 2022"]
[White "Slugin, Sergey"]
[Black "Morefield, Jason"]
[WhiteFideId "4122569"]
[BlackFideId "30920825"]
[WhiteElo "2358"]
[BlackElo "2171"]
[Result "1/2-1/2"]
[Round "08"]
[TimeControl "180+1"]
[Date "2022.06.07"]
[WhiteClock "0:00:06"]
[BlackClock "0:00:03"]

1. c4 {[%clk 0:03:00]}  Nf6 {[%clk 0:02:58]} 2. Nc3 {[%clk 0:03:01]}  b6 {[%clk 0:02:57]} 3. d4 {[%clk 0:02:40]}  Bb7 {[%clk 0:02:56]} 4. Qc2 {[%clk 0:02:40]}  d5 {[%clk 0:02:52]} 5. cxd5 {[%clk 0:02:36]}  Nxd5 {[%clk 0:02:52]} 6. e4 {[%clk 0:02:35]}  Nxc3 {[%clk 0:02:52]} 7. bxc3 {[%clk 0:02:36]}  g6 {[%clk 0:02:47]} 8. Nf3 {[%clk 0:02:34]}  Bg7 {[%clk 0:02:46]} 9. h4 {[%clk 0:02:34]}  h6 {[%clk 0:02:38]} 10. Bb5+ {[%clk 0:02:31]}  c6 {[%clk 0:02:36]} 11. Be2 {[%clk 0:02:30]}  O-O {[%clk 0:02:32]} 12. Be3 {[%clk 0:02:28]}  Nd7 {[%clk 0:02:31]} 13. e5 {[%clk 0:02:23]}  e6 {[%clk 0:02:25]} 14. h5 {[%clk 0:02:00]}  g5 {[%clk 0:02:22]} 15. Nxg5 {[%clk 0:02:00]}  hxg5 {[%clk 0:02:20]} 16. h6 {[%clk 0:02:01]}  Bh8 {[%clk 0:02:02]} 17. Rh5 {[%clk 0:02:01]}  f5 {[%clk 0:01:52]} 18. exf6 {[%clk 0:01:46]}  Bxf6 {[%clk 0:01:43]} 19. Rxg5+ {[%clk 0:01:05]}  Kh8 {[%clk 0:01:37]} 20. Rg6 {[%clk 0:01:03]}  Qe7 {[%clk 0:01:25]} 21. O-O-O {[%clk 0:01:01]}  Rg8 {[%clk 0:01:17]} 22. Rg7 {[%clk 0:00:37]}  Bxg7 {[%clk 0:01:08]} 23. hxg7+ {[%clk 0:00:38]}  Rxg7 {[%clk 0:01:09]} 24. Bh6 {[%clk 0:00:28]}  Kg8 {[%clk 0:00:41]} 25. Bxg7 {[%clk 0:00:27]}  Qxg7 {[%clk 0:00:42]} 26. Rd3 {[%clk 0:00:28]}  Kf8 {[%clk 0:00:29]} 27. Rg3 {[%clk 0:00:27]}  Qh6+ {[%clk 0:00:29]} 28. Kb1 {[%clk 0:00:26]}  Ke7 {[%clk 0:00:27]} 29. Rh3 {[%clk 0:00:22]}  Qf4 {[%clk 0:00:22]} 30. Rh7+ {[%clk 0:00:19]}  Kd6 {[%clk 0:00:22]} 31. Bf3 {[%clk 0:00:14]}  Rd8 {[%clk 0:00:18]} 32. Qg6 {[%clk 0:00:07]}  Qf5+ {[%clk 0:00:14]} 33. Qxf5 {[%clk 0:00:06]}  exf5 {[%clk 0:00:15]} 34. Rh6+ {[%clk 0:00:05]}  Kc7 {[%clk 0:00:15]} 35. Rh7 {[%clk 0:00:05]}  c5 {[%clk 0:00:13]} 36. Bxb7 {[%clk 0:00:03]}  Kxb7 {[%clk 0:00:14]} 37. Rf7 {[%clk 0:00:04]}  cxd4 {[%clk 0:00:11]} 38. cxd4 {[%clk 0:00:05]}  Kc6 {[%clk 0:00:11]} 39. Rxf5 {[%clk 0:00:05]}  Re8 {[%clk 0:00:11]} 40. Kc2 {[%clk 0:00:03]}  Re2+ {[%clk 0:00:11]} 41. Kb3 {[%clk 0:00:04]}  b5 {[%clk 0:00:09]} 42. g4 {[%clk 0:00:04]}  a5 {[%clk 0:00:09]} 43. g5 {[%clk 0:00:04]}  a4+ {[%clk 0:00:09]} 44. Ka3 {[%clk 0:00:05]}  Nb6 {[%clk 0:00:09]} 45. Rc5+ {[%clk 0:00:05]}  Kd6 {[%clk 0:00:08]} 46. Rxb5 {[%clk 0:00:06]}  Nd5 {[%clk 0:00:07]} 47. Rc5 {[%clk 0:00:05]}  Rxf2 {[%clk 0:00:06]} 48. Kxa4 {[%clk 0:00:06]}  Rxa2+ {[%clk 0:00:06]} 49. Kb3 {[%clk 0:00:06]}  Rg2 {[%clk 0:00:06]} 50. Kc4 {[%clk 0:00:06]}  Rxg5 {[%clk 0:00:02]} 51. Kd3 {[%clk 0:00:06]}  Nf4+ {[%clk 0:00:03]} 52. Ke4 {[%clk 0:00:06]}  Rxc5 {[%clk 0:00:03]} 53. dxc5+ {[%clk 0:00:06]}  Kxc5 {[%clk 0:00:03]} 1/2-1/2


[Site "https://www.chess.com"]